fUSD/lending_fUSD_20240420
["ID","MTS","AMOUNT","RATE_DAILY","PERIOD"]
[323057281,1713621137903,-7480.38,0.00018356,2]
[323057282,1713621137912,-1894.49,0.00018356,2]
[323057283,1713621137922,-873.58,0.00018356,2]
[323057284,1713621137931,-500.0,0.00018356,2]
[323057285,1713621137941,-1993.22,0.00018356,2]
[323057286,1713621137951,-880.45,0.00018356,2]
[323057287,1713621137960,-500.0,0.00018356,2]
[323057288,1713621137970,-1085.31,0.00018356,2]
[323057289,1713621137979,-500.0,0.00018356,2]
[323057290,1713621137989,-2753.72,0.00018356,2]
[323057291,1713621137999,-500.0,0.00018356,2]
[323057292,1713621138010,-1162.41,0.00018356,2]
[323057293,1713621138020,-2731.21,0.00018356,2]
[323057294,1713621138030,-220.85734915,0.00018356,2]
[323057295,1713621138039,-1954.97,0.00018356,2]
[323057296,1713621138049,-2627.79,0.00018356,2]
[323057297,1713621138058,-794.92,0.00018356,2]
[323057298,1713621138068,-1013.89,0.00018356,2]
[323057299,1713621138077,-1131.55,0.00018356,2]
[323057300,1713621138087,-622.04,0.00018356,2]
[323057301,1713621138096,-1320.88,0.00018356,2]
[323057302,1713621138106,-1413.35,0.00018356,2]
[323057303,1713621138115,-500.0,0.00018356,2]
[323057304,1713621138125,-500.0,0.00018356,2]
[323057305,1713621138134,-2346.4,0.00018356,2]
[323057306,1713621138144,-563.88,0.00018356,2]
[323057307,1713621138153,-803.26,0.00018356,2]
[323057308,1713621138162,-2292.01,0.00018356,2]
[323057309,1713621138172,-500.0,0.00018356,2]
[323057310,1713621138181,-831.92,0.00018356,2]
[323057311,1713621138190,-1128.04,0.00018356,2]
[323057312,1713621138199,-5369.64,0.00018356,2]
[323057313,1713621138209,-3431.1,0.00018356,2]
[323057314,1713621138218,-680.01,0.00018356,2]
[323057315,1713621138228,-546.08,0.00018356,2]
[323057316,1713621138237,-2676.86,0.00018356,2]
[323057317,1713621138246,-727.28,0.00018356,2]
[323057318,1713621138255,-2216.75,0.00018356,2]
[323057319,1713621138264,-823.84,0.00018356,2]
[323057320,1713621138274,-500.0,0.00018356,2]
[323057321,1713621138283,-1588.82,0.00018356,2]
[323057322,1713621138293,-841.25,0.00018356,2]
[323057323,1713621138304,-1811.35,0.00018356,2]
[323057324,1713621138313,-612.99290025,0.00018356,2]
[323057325,1713621138322,-500.0,0.00018356,2]
[323057326,1713621138331,-906.35,0.00018356,2]
[323057327,1713621138341,-866.08,0.00018356,2]
[323057328,1713621138350,-1171.0,0.00018356,2]
[323057329,1713621138359,-3500.27,0.00018356,2]
[323057330,1713621138368,-506.37,0.00018356,2]
[323057331,1713621138379,-1349.52,0.00018356,2]
[323057332,1713621138389,-4084.13,0.00018356,2]
[323057333,1713621138399,-2730.13,0.00018356,2]
[323057334,1713621138408,-1215.96,0.00018356,2]
[323057335,1713621138417,-500.0,0.00018356,2]
[323057336,1713621138427,-500.0,0.00018356,2]
[323057337,1713621138436,-570.63,0.00018356,2]
[323057338,1713621138445,-1517.62,0.00018356,2]
[323057339,1713621138454,-2492.62,0.00018356,2]
[323057340,1713621138464,-1694.66,0.00018356,2]
[323057341,1713621138473,-589.63,0.00018356,2]
[323057342,1713621138482,-1038.52,0.00018356,2]
[323057343,1713621138492,-500.0,0.00018356,2]
[323057344,1713621138501,-544.68,0.00018356,2]
[323057345,1713621138511,-745.95,0.00018356,2]
[323057346,1713621138520,-500.0,0.00018356,2]
[323057347,1713621138531,-2146.81,0.00018356,2]
[323057348,1713621138540,-500.0,0.00018356,2]
[323057349,1713621138549,-12863.04,0.00018356,2]
[323057350,1713621138558,-1580.69,0.00018356,2]
[323057351,1713621138567,-872.9,0.00018356,2]
[323057352,1713621138576,-610.6859051,0.00018356,2]
[323057353,1713621138586,-2481.94,0.00018356,2]
[323057354,1713621138596,-2416.85,0.00018356,2]
[323057355,1713621138606,-517.67,0.00018356,2]
[323057356,1713621138615,-716.61,0.00018356,2]
[323057357,1713621138625,-607.93,0.00018356,2]
[323057358,1713621138634,-500.0,0.00018356,2]
[323057359,1713621138643,-698.46,0.00018356,2]
[323057360,1713621138653,-1176.49,0.00018356,2]
[323057361,1713621138664,-1895.23,0.00018356,2]
[323057362,1713621138674,-2366.37,0.00018356,2]
[323057363,1713621138683,-834.84,0.00018356,2]
[323057364,1713621138693,-500.0,0.00018356,2]
[323057365,1713621138703,-500.0,0.00018356,2]
[323057366,1713621138712,-1264.42,0.00018356,2]
[323057367,1713621138722,-500.0,0.00018356,2]
[323057368,1713621138732,-1525.57,0.00018356,2]
[323057369,1713621138741,-1200.1,0.00018356,2]
[323057370,1713621138751,-500.0,0.00018356,2]
[323057371,1713621138761,-2596.31,0.00018356,2]
[323057372,1713621138770,-3734.56,0.00018356,2]
[323057373,1713621138781,-735.18,0.00018356,2]
[323057374,1713621138791,-1983.17,0.00018356,2]
[323057375,1713621138800,-685.33,0.00018356,2]
[323057376,1713621138810,-1892.67,0.00018356,2]
[323057377,1713621138819,-794.67,0.00018356,2]
[323057378,1713621138829,-2762.86,0.00018356,2]
[323057379,1713621138838,-698.53,0.00018356,2]
[323057380,1713621138847,-500.0,0.00018356,2]
[323057381,1713621138857,-4314.41,0.00018356,2]
[323057382,1713621138867,-928.74,0.00018356,2]
[323057383,1713621138878,-500.0,0.00018356,2]
[323057384,1713621138888,-704.33,0.00018356,2]
[323057385,1713621138898,-556.39,0.00018356,2]
[323057386,1713621138908,-4750.03,0.00018356,2]
[323057387,1713621138918,-500.0,0.00018356,2]
[323057388,1713621138927,-6352.14,0.00018356,2]
[323057389,1713621138936,-554.92,0.00018356,2]
[323057390,1713621138946,-1612.53,0.00018356,2]
[323057391,1713621138956,-1230.53,0.00018356,2]
[323057392,1713621138965,-500.0,0.00018356,2]
[323057393,1713621138975,-1323.32,0.00018356,2]
[323057394,1713621138984,-5730.53,0.00018356,2]
[323057395,1713621138994,-3222.01,0.00018356,2]
[323057396,1713621139003,-1237.83,0.00018356,2]
[323057397,1713621139013,-801.29,0.00018356,2]
[323057398,1713621139022,-500.0,0.00018356,2]
[323057399,1713621139033,-8896.9,0.00018356,2]
[323057400,1713621139042,-1250.13,0.00018356,2]
[323057401,1713621139052,-21516.91,0.00018356,2]
[323057402,1713621139061,-1238.37,0.00018356,2]
[323057403,1713621139071,-618.25,0.00018356,2]
[323057404,1713621139081,-1269.11,0.00018356,2]
[323057405,1713621139091,-622.79,0.00018356,2]
[323057406,1713621139102,-582.42,0.00018356,2]
[323057407,1713621139111,-152.0,0.00018358,5]
[323057408,1713621139121,-150.0,0.00018385,2]
[323057409,1713621139130,-150.0,0.00018399,2]
[323057410,1713621139140,-150.0,0.00018401,2]
[323057411,1713621139150,-150.0,0.00018417,2]
[323057412,1713621139160,-150.0,0.00018431,2]
[323057413,1713621139169,-167.07,0.00018444,2]
[323057414,1713621139179,-167.15,0.00018444,2]
[323057415,1713621139189,-151.72,0.00018444,2]
[323057416,1713621139198,-150.0,0.00018447,2]
[323057417,1713621139209,-200.0,0.00018452,2]
[323057418,1713621139218,-740.0,0.00018493,2]
[323057419,1713621139228,-807.78545341,0.000185,2]
[323057420,1713621139238,-150.0,0.000185,2]
[323057421,1713621139248,-150.0,0.000185,2]
[323057422,1713621139462,-150.0,0.0001851,2]
[323057423,1713621139471,-1207.65,0.00018543,2]
[323057424,1713621139481,-150.0,0.00018587,2]
[323057425,1713621139491,-2522.8,0.00018596,6]
[323057426,1713621139501,-1080.6,0.000186,5]
[323057427,1713621139510,-914.8,0.000186,5]
[323057428,1713621139519,-500.0,0.0001863,2]
[323057429,1713621139529,-1039.36,0.0001863,2]
[323057430,1713621139539,-272.9302209,0.0001863,2]
[323057431,1713621139549,-635.04,0.0001863,2]
[323057432,1713621139559,-639.54,0.0001863,2]
[323057433,1713621139568,-500.0,0.0001863,2]
[323057434,1713621139578,-500.0,0.0001863,2]
[323057435,1713621139588,-852.82,0.0001863,2]
[323057436,1713621139598,-654.32,0.0001863,2]
[323057437,1713621139607,-500.0,0.0001863,2]
[323057438,1713621139616,-502.56,0.0001863,2]
[323057439,1713621139626,-500.0,0.0001863,2]
[323057440,1713621139635,-611.35,0.0001863,2]
[323057441,1713621139645,-500.0,0.0001863,2]
[323057442,1713621139655,-735.88,0.0001863,2]
[323057443,1713621139665,-717.35,0.0001863,2]
[323057444,1713621139677,-500.0,0.0001863,2]
[323057445,1713621139687,-539.29,0.0001863,2]
[323057446,1713621139696,-500.0,0.0001863,2]
[323057447,1713621139708,-500.0,0.0001863,2]
[323057448,1713621139718,-500.0,0.0001863,2]
[323057449,1713621139727,-500.0,0.0001863,2]
[323057450,1713621139737,-500.0,0.0001863,2]
[323057451,1713621139746,-569.73,0.0001863,2]
[323057452,1713621139755,-500.0,0.0001863,2]
[323057453,1713621139764,-637.21,0.0001863,2]
[323057454,1713621139774,-827.03,0.0001863,2]
[323057455,1713621139784,-500.0,0.0001863,2]
[323057456,1713621139794,-579.7,0.0001863,2]
[323057457,1713621139803,-969.36,0.0001863,2]
[323057458,1713621139813,-781.94,0.0001863,2]
[323057459,1713621139823,-667.13,0.0001863,2]
[323057460,1713621139832,-500.0,0.0001863,2]
[323057461,1713621139842,-500.0,0.0001863,2]
[323057462,1713621139852,-421.36554198,0.0001863,2]
[323057463,1713621139862,-500.0,0.0001863,2]
[323057464,1713621139871,-500.0,0.0001863,2]
[323057465,1713621139881,-500.0,0.0001863,2]
[323057466,1713621139890,-770.44,0.0001863,2]
[323057467,1713621139900,-1099.12,0.0001863,2]
[323057468,1713621139909,-597.89,0.0001863,2]
[323057469,1713621139919,-500.0,0.0001863,2]
[323057470,1713621139929,-522.54,0.0001863,2]
[323057471,1713621139938,-500.0,0.0001863,2]
[323057472,1713621139948,-532.55,0.0001863,2]
[323057473,1713621139958,-500.0,0.0001863,2]
[323057474,1713621139968,-618.57,0.0001863,2]
[323057475,1713621139978,-500.0,0.0001863,2]
[323057476,1713621139988,-737.86,0.0001863,2]
[323057477,1713621139998,-500.0,0.0001863,2]
[323057478,1713621140008,-515.87,0.0001863,2]
[323057479,1713621140017,-500.0,0.0001863,2]
[323057480,1713621140028,-912.68,0.0001863,2]
[323057481,1713621140037,-860.75,0.0001863,2]
[323057482,1713621140047,-500.0,0.0001863,2]
[323057483,1713621140056,-702.21,0.0001863,2]
[323057484,1713621140066,-500.0,0.0001863,2]
[323057485,1713621140075,-500.0,0.0001863,2]
[323057486,1713621140085,-821.61,0.0001863,2]
[323057487,1713621140094,-821.76,0.0001863,2]
[323057488,1713621140104,-342.04639312,0.0001863,2]
[323057489,1713621140114,-500.0,0.0001863,2]
[323057490,1713621140124,-367.22258435,0.0001863,2]
[323057491,1713621140134,-500.0,0.0001863,2]
[323057492,1713621140144,-500.0,0.0001863,2]
[323057493,1713621140154,-940.84,0.0001863,2]
[323057494,1713621140164,-500.0,0.0001863,2]
[323057495,1713621140174,-863.56,0.0001863,2]
[323057496,1713621140184,-1083.21,0.0001863,2]
[323057497,1713621140194,-500.0,0.0001863,2]
[323057498,1713621140204,-1649.11,0.0001863,2]
[323057499,1713621140214,-500.0,0.0001863,2]
[323057500,1713621140224,-500.0,0.0001863,2]
[323057501,1713621140235,-933.2,0.0001863,2]
[323057502,1713621140246,-1738.53,0.0001863,2]
[323057503,1713621140256,-500.0,0.0001863,2]
[323057504,1713621140266,-500.0,0.0001863,2]
[323057505,1713621140276,-641.19,0.0001863,2]
[323057506,1713621140286,-546.2,0.0001863,2]
[323057507,1713621140297,-669.09,0.0001863,2]
[323057508,1713621140309,-538.48,0.0001863,2]
[323057509,1713621140320,-500.0,0.0001863,2]
[323057510,1713621140330,-526.85,0.0001863,2]
[323057511,1713621140341,-1472.9,0.0001863,2]
[323057512,1713621140351,-633.05,0.0001863,2]
[323057513,1713621140361,-500.0,0.0001863,2]
[323057514,1713621140371,-679.04,0.0001863,2]
[323057515,1713621140383,-500.0,0.0001863,2]
[323057516,1713621140393,-749.34,0.0001863,2]
[323057517,1713621140403,-614.66,0.0001863,2]
[323057518,1713621140413,-889.7,0.0001863,2]
[323057519,1713621140423,-669.86,0.0001863,2]
[323057520,1713621140433,-627.14,0.0001863,2]
[323057521,1713621140442,-500.0,0.0001863,2]
[323057522,1713621140452,-887.51,0.0001863,2]
[323057523,1713621140462,-500.0,0.0001863,2]
[323057524,1713621140471,-595.2,0.0001863,2]
[323057525,1713621140480,-576.96530734,0.0001863,2]
[323057526,1713621140490,-570.89365244,0.0001863,2]
[323057527,1713621140501,-712.4,0.0001863,2]
[323057528,1713621140511,-654.49,0.0001863,2]
[323057529,1713621140521,-583.86,0.0001863,2]
[323057530,1713621140531,-714.19,0.0001863,2]
[323057531,1713621140541,-500.0,0.0001863,2]
[323057532,1713621140552,-543.54,0.0001863,2]
[323057533,1713621140562,-856.07,0.0001863,2]
[323057534,1713621140571,-519.9,0.0001863,2]
[323057535,1713621140581,-1382.29,0.0001863,2]
[323057536,1713621140590,-704.01,0.0001863,2]
[323057537,1713621140599,-500.0,0.0001863,2]
[323057538,1713621140609,-778.05,0.0001863,2]
[323057539,1713621140618,-943.86,0.0001863,2]
[323057540,1713621140628,-533.87,0.0001863,2]
[323057541,1713621140636,-1206.79,0.0001863,2]
[323057542,1713621140646,-864.0,0.0001863,2]
[323057543,1713621140656,-871.35,0.0001863,2]
[323057544,1713621140665,-581.68,0.0001863,2]
[323057545,1713621140676,-998.69,0.0001863,2]
[323057546,1713621140686,-580.51,0.0001863,2]
[323057547,1713621140696,-564.88,0.0001863,2]
[323057548,1713621140706,-777.99,0.0001863,2]
[323057549,1713621140715,-566.7,0.0001863,2]
[323057550,1713621140725,-772.56,0.0001863,2]
[323057551,1713621140735,-922.4,0.0001863,2]
[323057552,1713621140744,-500.0,0.0001863,2]
[323057553,1713621140754,-510.23,0.0001863,2]
[323057554,1713621140764,-741.19,0.0001863,2]
[323057555,1713621140774,-500.0,0.0001863,2]
[323057556,1713621140785,-1301.99,0.0001863,2]
[323057557,1713621140795,-1011.91,0.0001863,2]
[323057558,1713621140805,-729.34,0.0001863,2]
[323057559,1713621140815,-598.99,0.0001863,2]
[323057560,1713621140824,-590.27,0.0001863,2]
[323057561,1713621140834,-500.0,0.0001863,2]
[323057562,1713621140844,-983.5,0.0001863,2]
[323057563,1713621140853,-500.0,0.0001863,2]
[323057564,1713621140863,-500.0,0.0001863,2]
[323057565,1713621140872,-500.0,0.0001863,2]
[323057566,1713621140882,-829.71,0.0001863,2]
[323057567,1713621140892,-500.0,0.0001863,2]
[323057568,1713621140902,-605.59,0.0001863,2]
[323057569,1713621140912,-441.66544289,0.0001863,2]
[323057570,1713621140923,-1243.7,0.0001863,2]
[323057571,1713621140933,-1886.34,0.0001863,2]
[323057572,1713621140943,-500.0,0.0001863,2]
[323057573,1713621140953,-685.34,0.0001863,2]
[323057574,1713621140963,-500.0,0.0001863,2]
[323057575,1713621140973,-500.0,0.0001863,2]
[323057576,1713621140998,-500.0,0.0001863,2]
[323057577,1713621141017,-500.0,0.0001863,2]
[323057578,1713621141037,-612.53,0.0001863,2]
[323057579,1713621141058,-723.5,0.0001863,2]
[323057580,1713621141074,-730.92,0.0001863,2]
[323057581,1713621141094,-500.0,0.0001863,2]
[323057582,1713621141112,-1025.52,0.0001863,2]
[323057583,1713621141131,-500.0,0.0001863,2]
[323057584,1713621141150,-500.0,0.0001863,2]
[323057585,1713621141168,-1486.68,0.0001863,2]
[323057586,1713621141186,-500.0,0.0001863,2]
[323057587,1713621141206,-970.1,0.0001863,2]
[323057588,1713621141221,-500.0,0.0001863,2]
[323057589,1713621141238,-600.76,0.0001863,2]
[323057590,1713621141256,-580.95,0.0001863,2]
[323057591,1713621141269,-775.5,0.0001863,2]
[323057592,1713621141288,-1195.92,0.0001863,2]
[323057593,1713621141307,-971.12,0.0001863,2]
[323057594,1713621141323,-558.98,0.0001863,2]
[323057595,1713621141339,-751.59,0.0001863,2]
[323057596,1713621141355,-1627.69,0.0001863,2]
[323057597,1713621141371,-1693.65,0.0001863,2]
[323057598,1713621141387,-500.0,0.0001863,2]
[323057599,1713621141402,-712.6,0.0001863,2]
[323057600,1713621141418,-500.0,0.0001863,2]
[323057601,1713621141433,-964.32,0.0001863,2]
[323057602,1713621141450,-611.81,0.0001863,2]
[323057603,1713621141466,-1500.36,0.0001863,2]
[323057604,1713621141481,-630.97,0.0001863,2]
[323057605,1713621141496,-1123.09,0.0001863,2]
[323057606,1713621141512,-500.0,0.0001863,2]
[323057607,1713621141528,-500.0,0.0001863,2]
[323057608,1713621141545,-571.83,0.0001863,2]
[323057609,1713621141561,-1122.67,0.0001863,2]
[323057610,1713621141577,-959.94,0.0001863,2]
[323057611,1713621141591,-666.18,0.0001863,2]
[323057612,1713621141606,-717.02,0.0001863,2]
[323057613,1713621141622,-500.0,0.0001863,2]
[323057614,1713621141638,-656.38,0.0001863,2]
[323057615,1713621141654,-672.57,0.0001863,2]
[323057616,1713621141669,-500.0,0.0001863,2]
[323057617,1713621141686,-817.63,0.0001863,2]
[323057618,1713621141700,-748.28,0.0001863,2]
[323057619,1713621141715,-1401.32,0.0001863,2]
[323057620,1713621141730,-1699.19,0.0001863,2]
[323057621,1713621141745,-1021.58,0.0001863,2]
[323057622,1713621141760,-2008.01,0.0001863,2]
[323057623,1713621141777,-500.0,0.0001863,2]
[323057624,1713621141793,-502.08,0.0001863,2]
[323057625,1713621141808,-623.84,0.0001863,2]
[323057626,1713621141823,-556.29,0.0001863,2]
[323057627,1713621141840,-1672.8,0.0001863,2]
[323057628,1713621141854,-1383.08,0.0001863,2]
[323057629,1713621141871,-500.0,0.0001863,2]
[323057630,1713621141887,-905.55,0.0001863,2]
[323057631,1713621141903,-500.0,0.0001863,2]
[323057632,1713621141918,-500.0,0.0001863,2]
[323057633,1713621141934,-500.0,0.0001863,2]
[323057634,1713621141949,-1271.86,0.0001863,2]
[323057635,1713621141964,-500.0,0.0001863,2]
[323057636,1713621141979,-531.26,0.0001863,2]
[323057637,1713621141994,-858.15,0.0001863,2]
[323057638,1713621142009,-500.0,0.0001863,2]
[323057639,1713621142023,-2051.78,0.0001863,2]
[323057640,1713621142040,-500.0,0.0001863,2]
[323057641,1713621142055,-2102.91,0.0001863,2]
[323057642,1713621142070,-495.25,0.0001863,2]
[323057643,1713621142084,-888.43,0.0001863,2]
[323057644,1713621142099,-500.0,0.0001863,2]
[323057645,1713621142115,-547.06,0.0001863,2]
[323057646,1713621142129,-1220.03,0.0001863,2]
[323057647,1713621142143,-1132.15,0.0001863,2]
[323057648,1713621142158,-1428.28,0.0001863,2]
[323057649,1713621142174,-1590.37,0.0001863,2]
[323057650,1713621142187,-640.38,0.0001863,2]
[323057651,1713621142202,-621.99,0.0001863,2]
[323057652,1713621142218,-1083.02,0.0001863,2]
[323057653,1713621142233,-912.32,0.0001863,2]
[323057654,1713621142248,-1323.41,0.0001863,2]
[323057655,1713621142262,-549.4,0.0001863,2]
[323057656,1713621142277,-590.76,0.0001863,2]
[323057657,1713621142292,-827.0,0.0001863,2]
[323057658,1713621142309,-720.61,0.0001863,2]
[323057659,1713621142323,-1207.81,0.0001863,2]
[323057660,1713621142336,-972.02,0.0001863,2]
[323057661,1713621142351,-1649.09,0.0001863,2]
[323057662,1713621142366,-3308.96,0.0001863,2]
[323057663,1713621142383,-1214.04,0.0001863,2]
[323057664,1713621142397,-500.0,0.0001863,2]
[323057665,1713621142412,-500.0,0.0001863,2]
[323057666,1713621142426,-500.0,0.0001863,2]
[323057667,1713621142443,-803.54,0.0001863,2]
[323057668,1713621142457,-1303.19,0.0001863,2]
[323057669,1713621142471,-3936.85,0.0001863,2]
[323057670,1713621142486,-586.97,0.0001863,2]
[323057671,1713621142501,-599.69,0.0001863,2]
[323057672,1713621142517,-1031.32,0.0001863,2]
[323057673,1713621142533,-789.55,0.0001863,2]
[323057674,1713621142547,-1204.32,0.0001863,2]
[323057675,1713621142562,-500.0,0.0001863,2]
[323057676,1713621142577,-500.0,0.0001863,2]
[323057677,1713621142591,-500.0,0.0001863,2]
[323057678,1713621142605,-702.73,0.0001863,2]
[323057679,1713621142618,-516.52,0.0001863,2]
[323057680,1713621142633,-3310.74,0.0001863,2]
[323057681,1713621142648,-500.0,0.0001863,2]
[323057682,1713621142663,-500.0,0.0001863,2]
[323057683,1713621142677,-2883.58,0.0001863,2]
[323057684,1713621142691,-1816.08,0.0001863,2]
[323057685,1713621142706,-585.36,0.0001863,2]
[323057686,1713621142720,-855.47,0.0001863,2]
[323057687,1713621142735,-534.99,0.0001863,2]
[323057688,1713621142751,-500.0,0.0001863,2]
[323057689,1713621142765,-25055.79,0.0001863,2]
[323057690,1713621142779,-2836.68,0.0001863,2]
[323057691,1713621142793,-1302.76,0.0001863,2]
[323057692,1713621142809,-1460.91,0.0001863,2]
[323057693,1713621142823,-11346.84,0.0001863,2]
[323057694,1713621142838,-604.68,0.0001863,2]
[323057695,1713621142853,-2104.73,0.0001863,2]
[323057696,1713621142867,-500.0,0.0001863,2]
[323057697,1713621142882,-531.64,0.0001863,2]
[323057698,1713621142897,-2073.42,0.0001863,2]
[323057699,1713621142917,-1526.62,0.0001863,2]
[323057700,1713621142931,-500.0,0.0001863,2]
[323057701,1713621142946,-1538.77,0.0001863,2]
[323057702,1713621142962,-17543.18,0.0001863,2]
[323057703,1713621142977,-500.0,0.0001863,2]
[323057704,1713621142992,-500.0,0.0001863,2]
[323057705,1713621143007,-4660.49,0.0001863,2]
[323057706,1713621143023,-2699.08,0.0001863,2]
[323057707,1713621143039,-500.0,0.0001863,2]
[323057708,1713621143054,-1179.82,0.0001863,2]
[323057709,1713621143068,-1530.53,0.0001863,2]
[323057710,1713621143083,-581.88,0.0001863,2]
[323057711,1713621143097,-2419.34,0.0001863,2]
[323057712,1713621143112,-500.0,0.0001863,2]
[323057713,1713621143127,-1491.91,0.0001863,2]
[323057714,1713621143142,-1046.7,0.0001863,2]
[323057715,1713621143156,-929.27,0.0001863,2]
[323057716,1713621143170,-1397.79,0.0001863,2]
[323057717,1713621143183,-2207.26,0.0001863,2]
[323057718,1713621143198,-5291.84,0.0001863,2]
[323057719,1713621143212,-983.83,0.0001863,2]
[323057720,1713621143226,-584.35,0.0001863,2]
[323057721,1713621143242,-689.72,0.0001863,2]
[323057722,1713621143257,-2126.15,0.0001863,2]
[323057723,1713621143271,-2569.48,0.0001863,2]
[323057724,1713621143287,-3579.93,0.0001863,2]
[323057725,1713621143306,-873.88,0.0001863,2]
[323057726,1713621143322,-820.73,0.0001863,2]
[323057727,1713621143336,-5218.13,0.0001863,2]
[323057728,1713621143668,-500.0,0.0001863,2]
[323057729,1713621143678,-500.0,0.0001863,2]
[323057730,1713621143688,-987.0,0.0001863,2]
[323057731,1713621143699,-20114.69,0.0001863,2]
[323057732,1713621143708,-500.0,0.0001863,2]
[323057733,1713621143718,-893.57,0.0001863,2]
[323057734,1713621143727,-637.43,0.0001863,2]
[323057735,1713621143736,-1731.18,0.0001863,2]
[323057736,1713621143745,-1285.12,0.0001863,2]
[323057737,1713621143755,-1109.59,0.0001863,2]
[323057738,1713621143764,-1096.27,0.0001863,2]
[323057739,1713621143774,-500.0,0.0001863,2]
[323057740,1713621143783,-725.21,0.0001863,2]
[323057741,1713621143793,-1089.81,0.0001863,2]
[323057742,1713621143803,-508.71,0.0001863,2]
[323057743,1713621143812,-500.0,0.0001863,2]
[323057744,1713621143822,-500.0,0.0001863,2]
[323057745,1713621143832,-1517.58,0.0001863,2]
[323057746,1713621143842,-520.08,0.0001863,2]
[323057747,1713621143852,-500.0,0.0001863,2]
[323057748,1713621143862,-1955.1,0.0001863,2]
[323057749,1713621143872,-500.0,0.0001863,2]
[323057750,1713621143882,-1531.19,0.0001863,2]
[323057751,1713621143891,-967.39,0.0001863,2]
[323057752,1713621143901,-620.62,0.0001863,2]
[323057753,1713621143910,-747.89,0.0001863,2]
[323057754,1713621143919,-7480.38,0.0001863,2]
[323057755,1713621143929,-1894.49,0.0001863,2]
[323057756,1713621143939,-873.58,0.0001863,2]
[323057757,1713621143949,-500.0,0.0001863,2]
[323057758,1713621143959,-1993.22,0.0001863,2]
[323057759,1713621143968,-880.45,0.0001863,2]
[323057760,1713621143978,-500.0,0.0001863,2]
[323057761,1713621143987,-1085.31,0.0001863,2]
[323057762,1713621143996,-500.0,0.0001863,2]
[323057763,1713621144007,-2753.72,0.0001863,2]
[323057764,1713621144016,-500.0,0.0001863,2]
[323057765,1713621144025,-1162.41,0.0001863,2]
[323057766,1713621144036,-2731.21,0.0001863,2]
[323057767,1713621144044,-1954.97,0.0001863,2]
[323057768,1713621144054,-2627.79,0.0001863,2]
[323057769,1713621144063,-794.92,0.0001863,2]
[323057770,1713621144073,-1013.89,0.0001863,2]
[323057771,1713621144083,-1131.55,0.0001863,2]
[323057772,1713621144092,-622.04,0.0001863,2]
[323057773,1713621144102,-1320.88,0.0001863,2]
[323057774,1713621144113,-1413.35,0.0001863,2]
[323057775,1713621144122,-500.0,0.0001863,2]
[323057776,1713621144132,-500.0,0.0001863,2]
[323057777,1713621144141,-2346.4,0.0001863,2]
[323057778,1713621144151,-563.88,0.0001863,2]
[323057779,1713621144161,-803.26,0.0001863,2]
[323057780,1713621144170,-2292.01,0.0001863,2]